fUST/lending_fUST_20241218
["ID","MTS","AMOUNT","RATE_DAILY","PERIOD"]
[345803101,1734485472550,-500.0,0.00025205,6]
[345803102,1734485472560,-859.95,0.00025205,6]
[345803103,1734485472569,-500.0,0.00025205,6]
[345803104,1734485472579,-500.0,0.00025205,6]
[345803105,1734485472589,-500.0,0.00025205,6]
[345803106,1734485472599,-500.0,0.00025205,6]
[345803107,1734485472608,-520.83,0.00025205,6]
[345803108,1734485472618,-342.06055604,0.00025205,6]
[345803109,1734485472628,-500.0,0.00025205,6]
[345803110,1734485472637,-850.5,0.00025205,6]
[345803111,1734485472650,-500.0,0.00025205,6]
[345803112,1734485472659,-500.0,0.00025205,6]
[345803113,1734485472668,-500.0,0.00025205,6]
[345803114,1734485472677,-500.0,0.00025205,6]
[345803115,1734485472687,-500.0,0.00025205,6]
[345803116,1734485472697,-1059.26,0.00025205,6]
[345803117,1734485472706,-500.0,0.00025205,6]
[345803118,1734485472715,-1179.42,0.00025205,2]
[345803119,1734485472726,-500.0,0.00025205,6]
[345803120,1734485472736,-500.0,0.00025205,6]
[345803121,1734485472746,-500.0,0.00025205,6]
[345803122,1734485472755,-500.0,0.00025205,6]
[345803123,1734485472765,-1310.86,0.00025205,6]
[345803124,1734485472774,-500.0,0.00025205,6]
[345803125,1734485472784,-500.0,0.00025205,6]
[345803126,1734485472793,-500.0,0.00025205,6]
[345803127,1734485472802,-500.0,0.00025205,6]
[345803128,1734485472812,-500.0,0.00025205,6]
[345803129,1734485472821,-500.0,0.00025205,6]
[345803130,1734485472831,-196.62199234,0.00025205,6]
[345803131,1734485472840,-439.63208874,0.00025205,6]
[345803132,1734485472850,-500.0,0.00025205,6]
[345803133,1734485472859,-932.76,0.00025205,6]
[345803134,1734485472869,-500.0,0.00025205,6]
[345803135,1734485472878,-500.0,0.00025205,6]
[345803136,1734485472887,-500.0,0.00025205,6]
[345803137,1734485472905,-500.0,0.00025205,6]
[345803138,1734485472920,-500.0,0.00025205,6]
[345803139,1734485472930,-500.0,0.00025205,6]
[345803140,1734485472939,-500.0,0.00025205,6]
[345803141,1734485472948,-500.0,0.00025205,6]
[345803142,1734485472957,-523.07658687,0.00025205,6]
[345803143,1734485472967,-531.78,0.00025205,6]
[345803144,1734485472976,-688.19,0.00025205,6]
[345803145,1734485472986,-500.0,0.00025205,6]
[345803146,1734485472995,-500.64448708,0.00025205,6]
[345803147,1734485473005,-500.0,0.00025205,6]
[345803148,1734485473014,-500.0,0.00025205,6]
[345803149,1734485473024,-500.0,0.00025205,6]
[345803150,1734485473033,-500.0,0.00025205,6]
[345803151,1734485473042,-500.0,0.00025205,6]
[345803152,1734485473052,-500.0,0.00025205,6]
[345803153,1734485473061,-502.90169142,0.00025205,6]
[345803154,1734485473071,-1759.28,0.00025205,6]
[345803155,1734485473080,-500.0,0.00025205,6]
[345803156,1734485473090,-999.98,0.00025205,6]
[345803157,1734485473099,-500.0,0.00025205,6]
[345803158,1734485473108,-621.8602903,0.00025205,6]
[345803159,1734485473117,-3560.82,0.00025205,6]
[345803160,1734485473127,-735.6,0.00025205,6]
[345803161,1734485473136,-291.96256935,0.00025205,6]
[345803162,1734485473145,-500.0,0.00025205,6]
[345803163,1734485473155,-953.64,0.00025205,6]
[345803164,1734485473164,-500.0,0.00025205,6]
[345803165,1734485473173,-500.0,0.00025205,6]
[345803166,1734485473268,-505.93206035,0.00025205,6]
[345803167,1734485473278,-500.0,0.00025205,6]
[345803168,1734485473287,-500.0,0.00025205,6]
[345803169,1734485473297,-500.0,0.00025205,2]
[345803170,1734485473307,-500.0,0.00025205,6]
[345803171,1734485473316,-500.0,0.00025205,6]
[345803172,1734485473325,-500.0,0.00025205,6]
[345803173,1734485473334,-500.0,0.00025205,6]
[345803174,1734485473344,-746.26,0.00025205,6]
[345803175,1734485473354,-196.26683584,0.00025205,6]
[345803176,1734485473364,-500.0,0.00025205,6]
[345803177,1734485473374,-500.0,0.00025205,6]
[345803178,1734485473388,-500.0,0.00025205,6]
[345803179,1734485473404,-500.0,0.00025205,6]
[345803180,1734485473413,-500.0,0.00025205,6]
[345803181,1734485473423,-500.0,0.00025205,6]
[345803182,1734485473435,-500.0,0.00025205,6]
[345803183,1734485473445,-862.5,0.00025205,6]
[345803184,1734485473456,-3621.98,0.00025205,6]
[345803185,1734485473467,-500.0,0.00025205,6]
[345803186,1734485473476,-410.16234468,0.00025205,6]
[345803187,1734485473486,-2247.8,0.00025205,6]
[345803188,1734485473495,-500.0,0.00025205,6]
[345803189,1734485473504,-500.0,0.00025205,6]
[345803190,1734485473514,-500.0,0.00025205,6]
[345803191,1734485473524,-500.0,0.00025205,6]
[345803192,1734485473533,-441.12683672,0.00025205,6]
[345803193,1734485473542,-500.0,0.00025205,6]
[345803194,1734485473554,-500.0,0.00025205,6]
[345803195,1734485473564,-500.71633785,0.00025205,6]
[345803196,1734485473573,-500.0,0.00025205,6]
[345803197,1734485473583,-500.0,0.00025205,6]
[345803198,1734485473592,-500.0,0.00025205,6]
[345803199,1734485473602,-500.0,0.00025205,6]
[345803200,1734485473611,-519.93,0.00025205,6]
[345803201,1734485473621,-500.0,0.00025205,6]
[345803202,1734485473630,-500.0,0.00025205,6]
[345803203,1734485473639,-500.0,0.00025205,6]
[345803204,1734485473654,-500.0,0.00025205,6]
[345803205,1734485473663,-500.0,0.00025205,6]
[345803206,1734485473673,-500.0,0.00025205,6]
[345803207,1734485473682,-500.0,0.00025205,6]
[345803208,1734485473692,-1338.21,0.00025205,6]
[345803209,1734485473701,-862.28,0.00025205,6]
[345803210,1734485473711,-500.0,0.00025205,6]
[345803211,1734485473720,-500.0,0.00025205,6]
[345803212,1734485473730,-500.0,0.00025205,6]
[345803213,1734485473739,-1864.93,0.00025205,6]
[345803214,1734485473749,-500.0,0.00025205,6]
[345803215,1734485473758,-500.0,0.00025205,6]
[345803216,1734485473768,-501.59902271,0.00025205,6]
[345803217,1734485473777,-500.0,0.00025205,6]
[345803218,1734485473787,-500.0,0.00025205,2]
[345803219,1734485473797,-500.0,0.00025205,6]
[345803220,1734485473807,-500.0,0.00025205,6]
[345803221,1734485473816,-4056.93,0.00025205,2]
[345803222,1734485473825,-500.0,0.00025205,6]
[345803223,1734485473835,-500.0,0.00025205,6]
[345803224,1734485473845,-500.0,0.00025205,6]
[345803225,1734485473854,-500.0,0.00025205,6]
[345803226,1734485473863,-500.0,0.00025205,6]
[345803227,1734485473873,-500.0,0.00025205,6]
[345803228,1734485473882,-500.0,0.00025205,6]
[345803229,1734485473896,-500.0,0.00025205,6]
[345803230,1734485473906,-500.0,0.00025205,6]
[345803231,1734485473916,-501.2076488,0.00025205,6]
[345803232,1734485473925,-500.0,0.00025205,6]
[345803233,1734485473935,-500.0,0.00025205,6]
[345803234,1734485473945,-1518.86,0.00025205,6]
[345803235,1734485473955,-513.53,0.00025205,6]
[345803236,1734485473964,-500.0,0.00025205,6]
[345803237,1734485473974,-500.0,0.00025205,6]
[345803238,1734485473984,-500.0,0.00025205,6]
[345803239,1734485473994,-466.67138101,0.00025205,6]
[345803240,1734485474004,-500.0,0.00025205,6]
[345803241,1734485474013,-500.0,0.00025205,6]
[345803242,1734485474022,-500.0,0.00025205,6]
[345803243,1734485474033,-500.0,0.00025205,6]
[345803244,1734485474043,-500.0,0.00025205,6]
[345803245,1734485474052,-246.84,0.00025205,6]
[345803246,1734485474062,-399.16,0.00025205,6]
[345803247,1734485474071,-1809.53,0.00025205,6]
[345803248,1734485474080,-500.0,0.00025205,6]
[345803249,1734485474090,-500.0,0.00025205,6]
[345803250,1734485474099,-571.61058962,0.00025205,6]
[345803251,1734485474108,-500.0,0.00025205,6]
[345803252,1734485474118,-11559.09,0.00025205,6]
[345803253,1734485474127,-1018.03,0.00025205,6]
[345803254,1734485474136,-500.0,0.00025205,6]
[345803255,1734485474150,-500.0,0.00025205,6]
[345803256,1734485474159,-535.94,0.00025205,6]
[345803257,1734485474168,-516.57530283,0.00025205,6]
[345803258,1734485474178,-500.0,0.00025205,6]
[345803259,1734485474188,-500.0,0.00025205,6]
[345803260,1734485474198,-500.0,0.00025205,6]
[345803261,1734485474207,-500.0,0.00025205,6]
[345803262,1734485474218,-513.18262643,0.00025205,6]
[345803263,1734485474227,-833.85,0.00025205,6]
[345803264,1734485474237,-500.0,0.00025205,6]
[345803265,1734485474246,-500.0,0.00025205,6]
[345803266,1734485474256,-500.0,0.00025205,6]
[345803267,1734485474265,-500.0,0.00025205,6]
[345803268,1734485474275,-500.0,0.00025205,6]
[345803269,1734485474285,-416.77763696,0.00025205,6]
[345803270,1734485474295,-9430.38,0.00025205,6]
[345803271,1734485474304,-500.0,0.00025205,6]
[345803272,1734485474315,-500.0,0.00025205,6]
[345803273,1734485474325,-500.0,0.00025205,6]
[345803274,1734485474335,-500.0,0.00025205,6]
[345803275,1734485474344,-2764.51,0.00025205,6]
[345803276,1734485474354,-500.0,0.00025205,6]
[345803277,1734485474364,-6676.92,0.00025205,6]
[345803278,1734485474373,-500.0,0.00025205,6]
[345803279,1734485474386,-500.0,0.00025205,6]
[345803280,1734485474402,-500.0,0.00025205,6]
[345803281,1734485474413,-500.0,0.00025205,6]
[345803282,1734485474423,-500.0,0.00025205,6]
[345803283,1734485474433,-500.0,0.00025205,6]
[345803284,1734485474442,-538.6694451,0.00025205,6]
[345803285,1734485474453,-500.0,0.00025205,6]
[345803286,1734485474464,-3499.11,0.00025205,6]
[345803287,1734485474474,-500.0,0.00025205,6]
[345803288,1734485474484,-560.46,0.00025205,6]
[345803289,1734485474494,-500.0,0.00025205,6]
[345803290,1734485474504,-500.0,0.00025205,6]
[345803291,1734485474513,-8929.16,0.00025205,6]
[345803292,1734485474523,-500.0,0.00025205,6]
[345803293,1734485474532,-541.13420367,0.00025205,6]
[345803294,1734485474542,-1239.43,0.00025205,6]
[345803295,1734485474551,-206.27,0.00025205,6]
[345803296,1734485474561,-896.78,0.00025205,6]
[345803297,1734485474570,-500.0,0.00025205,6]
[345803298,1734485474580,-500.0,0.00025205,6]
[345803299,1734485474590,-534.9763197,0.00025205,6]
[345803300,1734485474600,-500.0,0.00025205,6]
[345803301,1734485474610,-500.0,0.00025205,6]
[345803302,1734485474620,-500.0,0.00025205,6]
[345803303,1734485474630,-500.0,0.00025205,6]
[345803304,1734485474639,-932.64,0.00025205,6]
[345803305,1734485474653,-382.54672614,0.00025205,6]
[345803306,1734485474663,-620.78,0.00025205,6]
[345803307,1734485474673,-6806.92,0.00025205,6]
[345803308,1734485474682,-500.0,0.00025205,6]
[345803309,1734485474692,-585.33,0.00025205,6]
[345803310,1734485474701,-500.0,0.00025205,6]
[345803311,1734485474710,-953.66,0.00025205,2]
[345803312,1734485474719,-500.0,0.00025205,6]
[345803313,1734485474729,-500.0,0.00025205,6]
[345803314,1734485474738,-502.58170708,0.00025205,6]
[345803315,1734485474748,-500.0,0.00025205,6]
[345803316,1734485474758,-500.0,0.00025205,6]
[345803317,1734485474768,-526.2,0.00025205,6]
[345803318,1734485474778,-500.0,0.00025205,6]
[345803319,1734485474787,-500.0,0.00025205,6]
[345803320,1734485474798,-500.0,0.00025205,6]
[345803321,1734485474808,-500.41073734,0.00025205,6]
[345803322,1734485474818,-500.0,0.00025205,6]
[345803323,1734485474827,-500.0,0.00025205,6]
[345803324,1734485474838,-5332.63,0.00025205,6]
[345803325,1734485474850,-500.0,0.00025205,6]
[345803326,1734485474860,-670.37,0.00025205,6]
[345803327,1734485474870,-934.96,0.00025205,6]
[345803328,1734485474879,-500.0,0.00025205,6]
[345803329,1734485474889,-500.0,0.00025205,6]
[345803330,1734485474902,-500.0,0.00025205,6]
[345803331,1734485474911,-500.0,0.00025205,2]
[345803332,1734485474920,-500.0,0.00025205,6]
[345803333,1734485474930,-500.0,0.00025205,6]
[345803334,1734485474940,-1078.68,0.00025205,6]
[345803335,1734485474950,-500.0,0.00025205,6]
[345803336,1734485474959,-516.98182651,0.00025205,6]
[345803337,1734485474969,-500.0,0.00025205,6]
[345803338,1734485474979,-500.0,0.00025205,6]
[345803339,1734485474989,-4825.31,0.00025205,4]
[345803340,1734485474998,-500.0,0.00025205,6]
[345803341,1734485475008,-219.75186572,0.00025205,6]
[345803342,1734485475017,-501.2424865,0.00025205,6]
[345803343,1734485475026,-500.0,0.00025205,6]
[345803344,1734485475036,-500.0,0.00025205,6]
[345803345,1734485475046,-546.13,0.00025205,6]
[345803346,1734485475055,-500.0,0.00025205,6]
[345803347,1734485475065,-500.0,0.00025205,6]
[345803348,1734485475075,-500.0,0.00025205,6]
[345803349,1734485475084,-502.66613123,0.00025205,6]
[345803350,1734485475094,-500.0,0.00025205,6]
[345803351,1734485475103,-500.0,0.00025205,6]
[345803352,1734485475113,-500.0,0.00025205,6]
[345803353,1734485475123,-500.0,0.00025205,6]
[345803354,1734485475132,-500.0,0.00025205,6]
[345803355,1734485475142,-6739.3,0.00025205,6]
[345803356,1734485475155,-898.56,0.00025205,6]
[345803357,1734485475165,-6417.84,0.00025205,6]
[345803358,1734485475174,-500.0,0.00025205,6]
[345803359,1734485475183,-764.65,0.00025205,6]
[345803360,1734485475192,-500.0,0.00025205,6]
[345803361,1734485475202,-500.0,0.00025205,6]
[345803362,1734485475212,-500.0,0.00025205,6]
[345803363,1734485475222,-500.0,0.00025205,6]
[345803364,1734485475231,-700.11,0.00025205,6]
[345803365,1734485475240,-500.0,0.00025205,6]
[345803366,1734485475250,-500.0,0.00025205,6]
[345803367,1734485475259,-500.0,0.00025205,6]
[345803368,1734485475268,-500.0,0.00025205,6]
[345803369,1734485475278,-500.0,0.00025205,6]
[345803370,1734485475288,-500.0,0.00025205,6]
[345803371,1734485475297,-500.0,0.00025205,6]
[345803372,1734485475307,-500.0,0.00025205,6]
[345803373,1734485475317,-500.0,0.00025205,6]
[345803374,1734485475327,-550.2,0.00025205,6]
[345803375,1734485475337,-500.0,0.00025205,6]
[345803376,1734485475347,-500.0,0.00025205,6]
[345803377,1734485475357,-1424.88,0.00025205,6]
[345803378,1734485475367,-450.82994248,0.00025205,6]
[345803379,1734485475377,-500.0,0.00025205,6]
[345803380,1734485475391,-500.0,0.00025205,6]
[345803381,1734485475406,-500.0,0.00025205,6]
[345803382,1734485475416,-847.18,0.00025205,6]
[345803383,1734485475427,-1170.93,0.00025205,6]
[345803384,1734485475436,-618.27,0.00025205,6]
[345803385,1734485475446,-2515.01,0.00025205,6]
[345803386,1734485475456,-500.0,0.00025205,6]
[345803387,1734485475467,-500.0,0.00025205,6]
[345803388,1734485475476,-500.0,0.00025205,6]
[345803389,1734485475486,-500.0,0.00025205,6]
[345803390,1734485475495,-1257.71,0.00025205,6]
[345803391,1734485475504,-500.0,0.00025205,6]
[345803392,1734485475514,-500.0,0.00025205,6]
[345803393,1734485475523,-500.0,0.00025205,6]
[345803394,1734485475532,-493.10206846,0.00025205,6]
[345803395,1734485475646,-500.0,0.00025205,6]
[345803396,1734485475662,-500.0,0.00025205,6]
[345803397,1734485475672,-655.39,0.00025205,6]
[345803398,1734485475681,-500.0,0.00025205,6]
[345803399,1734485475691,-500.0,0.00025205,6]
[345803400,1734485475700,-500.0,0.00025205,6]
[345803401,1734485475710,-500.0,0.00025205,6]
[345803402,1734485475720,-501.8,0.00025205,6]
[345803403,1734485475730,-500.0,0.00025205,6]
[345803404,1734485475739,-1783.59,0.00025205,6]
[345803405,1734485475749,-612.48,0.00025205,6]
[345803406,1734485475759,-500.0,0.00025205,6]
[345803407,1734485475769,-500.0,0.00025205,6]
[345803408,1734485475778,-500.0,0.00025205,6]
[345803409,1734485475788,-5518.01,0.00025205,6]
[345803410,1734485475798,-877.97,0.00025205,6]
[345803411,1734485475808,-500.0,0.00025205,6]
[345803412,1734485475818,-500.0,0.00025205,6]
[345803413,1734485475827,-976.38,0.00025205,6]
[345803414,1734485475838,-500.0,0.00025205,6]
[345803415,1734485475847,-500.0,0.00025205,6]
[345803416,1734485475857,-500.0,0.00025205,6]
[345803417,1734485475867,-1036.08,0.00025205,6]
[345803418,1734485475876,-500.0,0.00025205,6]
[345803419,1734485475886,-500.0,0.00025205,6]
[345803420,1734485475898,-501.77843281,0.00025205,6]
[345803421,1734485475908,-509.54186805,0.00025205,6]
[345803422,1734485475917,-500.0,0.00025205,6]
[345803423,1734485475927,-500.0,0.00025205,6]
[345803424,1734485475937,-500.0,0.00025205,6]
[345803425,1734485475947,-500.0,0.00025205,6]
[345803426,1734485475956,-500.0,0.00025205,6]
[345803427,1734485475966,-500.0,0.00025205,6]
[345803428,1734485475975,-500.0,0.00025205,6]
[345803429,1734485475984,-502.74019183,0.00025205,6]
[345803430,1734485475994,-384.43803569,0.00025205,6]
[345803431,1734485476004,-500.0,0.00025205,6]
[345803432,1734485476015,-89559.93,0.00025205,6]
[345803433,1734485476025,-500.0,0.00025205,6]
[345803434,1734485476035,-1331.74,0.00025205,6]
[345803435,1734485476045,-500.0,0.00025205,6]
[345803436,1734485476055,-506.43174088,0.00025205,6]
[345803437,1734485476065,-500.0,0.00025205,6]
[345803438,1734485476075,-501.65178535,0.00025205,6]
[345803439,1734485476085,-500.0,0.00025205,6]
[345803440,1734485476095,-703.65,0.00025205,6]
[345803441,1734485476104,-500.0,0.00025205,6]
[345803442,1734485476114,-500.0,0.00025205,6]
[345803443,1734485476123,-500.0,0.00025205,6]
[345803444,1734485476132,-500.0,0.00025205,6]
[345803445,1734485476142,-500.0,0.00025205,6]
[345803446,1734485476155,-500.0,0.00025205,6]
[345803447,1734485476165,-500.0,0.00025205,6]
[345803448,1734485476175,-4327.48,0.00025205,6]
[345803449,1734485476185,-500.0,0.00025205,6]
[345803450,1734485476194,-501.02573544,0.00025205,6]
[345803451,1734485476204,-500.0,0.00025205,6]
[345803452,1734485476214,-3999.45,0.00025205,6]
[345803453,1734485476224,-651.1,0.00025205,6]
[345803454,1734485476233,-500.0,0.00025205,6]
[345803455,1734485476242,-701.45,0.00025205,6]
[345803456,1734485476250,-500.0,0.00025205,6]
[345803457,1734485476258,-500.0,0.00025205,6]
[345803458,1734485476266,-500.0,0.00025205,6]
[345803459,1734485476275,-500.0,0.00025205,6]
[345803460,1734485476283,-966.44,0.00025205,6]
[345803461,1734485476293,-500.0,0.00025205,6]
[345803462,1734485476303,-500.0,0.00025205,6]
[345803463,1734485476312,-1267.16,0.00025205,6]
[345803464,1734485476322,-502.45737857,0.00025205,6]
[345803465,1734485476332,-220.08998098,0.0002522,9]
[345803466,1734485476342,-500.0,0.00025221,2]
[345803467,1734485476353,-1000.0,0.00025221,2]
[345803468,1734485476362,-5000.0,0.00025221,7]
[345803469,1734485476373,-500.0,0.00025315,2]
[345803470,1734485476386,-804.97077864,0.00025315,2]
[345803471,1734485476397,-7182.3351235,0.000254,2]
[345803472,1734485476408,-290.546,0.00025414,2]
[345803473,1734485476417,-151.0,0.00025414,2]
[345803474,1734485476429,-1330.41339957,0.00025419,2]
[345803475,1734485476439,-900.0,0.00025469,3]
[345803476,1734485476449,-504.7536933,0.00025479,6]
[345803477,1734485476460,-500.0,0.00025479,6]
[345803478,1734485476470,-500.0,0.00025479,6]
[345803479,1734485476479,-500.0,0.00025479,6]
[345803480,1734485476489,-357.8579733,0.00025479,6]
[345803481,1734485476499,-500.0,0.00025479,6]
[345803482,1734485476508,-500.0,0.00025479,6]
[345803483,1734485476518,-500.0,0.00025479,6]
[345803484,1734485476528,-500.0,0.00025479,6]
[345803485,1734485476540,-500.0,0.00025479,6]
[345803486,1734485476550,-500.0,0.00025479,6]
[345803487,1734485476559,-500.0,0.00025479,6]
[345803488,1734485476568,-500.0,0.00025479,6]
[345803489,1734485476578,-500.0,0.00025479,6]
[345803490,1734485476587,-502.40585606,0.00025479,6]
[345803491,1734485476597,-500.0,0.00025479,6]
[345803492,1734485476606,-500.0,0.00025479,6]
[345803493,1734485476615,-500.0,0.00025479,6]
[345803494,1734485476625,-500.0,0.00025479,6]
[345803495,1734485476634,-500.0,0.00025479,6]
[345803496,1734485476643,-502.29482985,0.00025479,6]
[345803497,1734485476655,-500.0,0.00025479,6]
[345803498,1734485476665,-500.0,0.00025479,6]
[345803499,1734485476674,-400.0,0.00025479,6]
[345803500,1734485476684,-500.0,0.00025479,6]
[345803501,1734485476693,-500.0,0.00025479,6]
[345803502,1734485476702,-500.0,0.00025479,6]
[345803503,1734485476712,-500.0,0.00025479,6]
[345803504,1734485476722,-500.0,0.00025479,6]
[345803505,1734485476732,-500.0,0.00025479,6]
[345803506,1734485476741,-404.37125316,0.00025479,6]
[345803507,1734485476751,-500.0,0.00025479,6]
[345803508,1734485476761,-500.0,0.00025479,6]
[345803509,1734485476770,-500.0,0.00025479,6]
[345803510,1734485476779,-501.69193772,0.00025479,6]
[345803511,1734485476789,-500.0,0.00025479,6]
[345803512,1734485476799,-500.0,0.00025479,6]
[345803513,1734485476808,-500.0,0.00025479,6]
[345803514,1734485476818,-500.0,0.00025479,6]
[345803515,1734485476827,-500.0,0.00025479,6]
[345803516,1734485476837,-500.0,0.00025479,6]
[345803517,1734485476846,-523.03703755,0.00025479,6]
[345803518,1734485476855,-500.0,0.00025479,6]
[345803519,1734485476865,-500.0,0.00025479,6]
[345803520,1734485476874,-595.96,0.00025479,6]
[345803521,1734485476883,-200.0,0.00025479,6]
[345803522,1734485476892,-225.86565065,0.00025479,6]
[345803523,1734485476906,-500.0,0.00025479,6]
[345803524,1734485476915,-500.0,0.00025479,6]
[345803525,1734485476925,-500.0,0.00025479,6]
[345803526,1734485476935,-500.0,0.00025479,6]
[345803527,1734485476944,-500.0,0.00025479,6]
[345803528,1734485476953,-264.76783684,0.00025479,6]
[345803529,1734485476963,-500.0,0.00025479,6]
[345803530,1734485476972,-500.0,0.00025479,6]
[345803531,1734485476981,-500.0,0.00025479,6]
[345803532,1734485476990,-500.0,0.00025479,6]
[345803533,1734485476999,-500.0,0.00025479,6]
[345803534,1734485477009,-641.19,0.00025479,6]
[345803535,1734485477018,-150.28,0.00025479,6]
[345803536,1734485477027,-500.0,0.00025479,6]
[345803537,1734485477036,-500.0,0.00025479,6]
[345803538,1734485477045,-659.48,0.00025479,6]
[345803539,1734485477055,-500.0,0.00025479,6]
[345803540,1734485477064,-500.0,0.00025479,6]
[345803541,1734485477073,-500.0,0.00025479,6]
[345803542,1734485477082,-500.0,0.00025479,6]
[345803543,1734485477091,-500.0,0.00025479,6]
[345803544,1734485477101,-500.0,0.00025479,6]
[345803545,1734485477110,-500.0,0.00025479,6]
[345803546,1734485477119,-500.0,0.00025479,6]
[345803547,1734485477129,-500.0,0.00025479,6]
[345803548,1734485477138,-500.0,0.00025479,6]
[345803549,1734485477150,-500.0,0.00025479,6]
[345803550,1734485477159,-500.0,0.00025479,6]
[345803551,1734485477168,-500.0,0.00025479,6]
[345803552,1734485477177,-500.0,0.00025479,6]
[345803553,1734485477186,-505.70679783,0.00025479,6]
[345803554,1734485477195,-648.17982719,0.00025479,6]
[345803555,1734485477204,-500.0,0.00025479,6]
[345803556,1734485477214,-503.2214752,0.00025479,6]
[345803557,1734485477223,-501.04818258,0.00025479,6]
[345803558,1734485477232,-503.0693829,0.00025479,6]
[345803559,1734485477241,-671.85,0.00025479,6]
[345803560,1734485477250,-500.0,0.00025479,6]
[345803561,1734485477259,-500.0,0.00025479,6]
[345803562,1734485477268,-500.0,0.00025479,6]
[345803563,1734485477278,-219.79032384,0.00025479,6]
[345803564,1734485477287,-566.04017446,0.00025479,6]
[345803565,1734485477297,-500.0,0.00025479,6]
[345803566,1734485477306,-2812.27,0.00025479,6]
[345803567,1734485477315,-500.0,0.00025479,6]
[345803568,1734485477324,-500.0,0.00025479,6]
[345803569,1734485477334,-500.0,0.00025479,6]
[345803570,1734485477343,-500.0,0.00025479,6]
[345803571,1734485477353,-500.0,0.00025479,6]
[345803572,1734485477362,-1191.87,0.00025479,6]
[345803573,1734485477372,-500.0,0.00025479,6]
[345803574,1734485477383,-170.98080076,0.00025479,6]
[345803575,1734485477393,-500.0,0.00025479,6]
[345803576,1734485477405,-500.0,0.00025479,2]
[345803577,1734485477415,-500.0,0.00025479,6]
[345803578,1734485477427,-500.0,0.00025479,6]
[345803579,1734485477436,-500.0,0.00025479,6]
[345803580,1734485477445,-500.0,0.00025479,6]
[345803581,1734485477454,-500.0,0.00025479,6]
[345803582,1734485477465,-587.77,0.00025479,6]
[345803583,1734485477474,-500.0,0.00025479,6]
[345803584,1734485477483,-500.0,0.00025479,6]
[345803585,1734485477492,-500.0,0.00025479,6]
[345803586,1734485477502,-503.33724119,0.00025479,6]
[345803587,1734485477511,-500.0,0.00025479,6]
[345803588,1734485477520,-500.0,0.00025479,6]
[345803589,1734485477529,-500.0,0.00025479,6]
[345803590,1734485477539,-500.0,0.00025479,6]
[345803591,1734485477548,-500.0,0.00025479,6]
[345803592,1734485477558,-577.91,0.00025479,6]
[345803593,1734485477567,-500.0,0.00025479,6]
[345803594,1734485477576,-500.0,0.00025479,6]
[345803595,1734485477586,-500.0,0.00025479,6]
[345803596,1734485477595,-556.79840297,0.00025479,6]
[345803597,1734485477605,-500.0,0.00025479,6]
[345803598,1734485477614,-500.0,0.00025479,6]
[345803599,1734485477623,-500.0,0.00025479,6]
[345803600,1734485477633,-758.84,0.00025479,6]